fUSD/lending_fUSD_20251119
["ID","MTS","AMOUNT","RATE_DAILY","PERIOD"]
[394379165,1763511042074,-500.0,0.00038609,30]
[394379166,1763511042084,-500.0,0.00038634,30]
[394379167,1763511042093,-1000.0,0.00038639,2]
[394379168,1763511042102,-193.11,0.00038674,2]
[394379169,1763511042111,-1457.92381117,0.00038728,2]
[394379170,1763511042120,-4313.64587493,0.00038732,2]
[394379171,1763511042130,-217.19,0.00038789,2]
[394379172,1763511042139,-500.0,0.00038815,30]
[394379173,1763511042148,-150.0,0.00038816,7]
[394379174,1763511042158,-150.0,0.00038816,7]
[394379175,1763511042167,-366.8,0.00038854,14]
[394379176,1763511042177,-250.0,0.00039021,5]
[394379177,1763511042186,-500.0,0.00039026,30]
[394379178,1763511042196,-962.75616735,0.00039028,2]
[394379179,1763511042206,-2924.76303,0.00039051,2]
[394379180,1763511042216,-150.0,0.00039094,7]
[394379181,1763511042225,-500.0,0.00039175,120]
[394379182,1763511042234,-500.0,0.00039175,120]
[394379183,1763511042243,-500.0,0.00039175,120]
[394379184,1763511042253,-500.0,0.00039175,120]
[394379185,1763511042262,-500.0,0.00039175,120]
[394379186,1763511042272,-500.0,0.00039175,120]
[394379187,1763511042281,-636.53,0.00039175,7]
[394379188,1763511042291,-500.0,0.00039175,120]
[394379189,1763511042300,-448.79605126,0.00039175,120]
[394379190,1763511042310,-435.78027671,0.00039175,120]
[394379191,1763511042319,-262.62356826,0.00039175,120]
[394379192,1763511042328,-500.0,0.00039175,30]
[394379193,1763511042338,-500.0,0.00039175,120]
[394379194,1763511042347,-530.64,0.00039175,2]
[394379195,1763511042356,-500.0,0.00039175,120]
[394379196,1763511042366,-500.0,0.00039215,30]
[394379197,1763511042375,-500.0,0.00039238,30]
[394379198,1763511042387,-150.42,0.0003929,2]
[394379199,1763511042402,-370.01,0.00039298,30]
[394379200,1763511042412,-497.05418044,0.0003932,33]
[394379201,1763511042421,-150.0,0.00039371,7]
[394379202,1763511042430,-1638.0,0.000394,7]
[394379203,1763511042439,-3409.34,0.000395,14]
[394379204,1763511042449,-500.0,0.00039526,30]
[394379205,1763511042458,-350.0,0.00039568,5]
[394379206,1763511042467,-500.0,0.00039579,30]
[394379207,1763511042476,-150.0,0.00039648,7]
[394379208,1763511042486,-513.84,0.00039654,2]
[394379209,1763511042495,-500.0,0.00039695,30]
[394379210,1763511042504,-588.971763,0.00039703,2]
[394379211,1763511042513,-1457.92381117,0.00039718,2]
[394379212,1763511042522,-4313.64587493,0.0003972,2]
[394379213,1763511042531,-167.73527823,0.00039803,13]
[394379214,1763511042540,-150.0,0.00039925,7]
[394379215,1763511042549,-241.14198119,0.00039999,31]
[394379216,1763511042559,-500.0,0.00039999,31]
[394379217,1763511042568,-285.28213563,0.00039999,31]
[394379218,1763511042577,-500.0,0.00039999,31]
[394379219,1763511042586,-602.95368728,0.00039999,31]
[394379220,1763511042595,-1000.0,0.0004,60]
[394379221,1763511042604,-2121.15,0.0004,30]
[394379222,1763511042614,-5866.74125896,0.0004,10]
[394379223,1763511042623,-6000.29023278,0.0004,2]
[394379224,1763511042633,-1000.0,0.0004,7]
[394379225,1763511042642,-500.0,0.00040088,30]
[394379226,1763511042652,-240.74993926,0.00040116,5]
[394379227,1763511042661,-610.76,0.00040137,2]
[394379228,1763511042671,-229.38,0.00040137,2]
[394379229,1763511042679,-416.87,0.00040137,2]
[394379231,1763511042688,-150.0,0.00040137,2]
[394379232,1763511042698,-416.87,0.00040137,2]
[394379234,1763511042707,-416.87,0.00040137,2]
[394379236,1763511042715,-416.87,0.00040137,2]
[394379237,1763511042723,-416.87,0.00040137,2]
[394379239,1763511042732,-1000.0,0.0004015,120]
[394379241,1763511042741,-500.0,0.00040151,30]
[394379242,1763511042750,-150.0,0.00040203,7]
[394379244,1763511042759,-150.0,0.00040203,7]
[394379246,1763511042768,-3432.0,0.00040205,2]
[394379247,1763511042777,-821.0,0.00040205,2]
[394379249,1763511042787,-1276.0,0.00040205,2]
[394379251,1763511042797,-793.0,0.00040205,2]
[394379253,1763511042806,-1191.0,0.00040205,2]
[394379255,1763511042815,-907.0,0.00040205,2]
[394379256,1763511042824,-1604.0,0.00040205,2]
[394379258,1763511042833,-6490.0,0.00040205,2]
[394379260,1763511042842,-500.0,0.00040263,30]
[394379261,1763511042851,-12235.4688649,0.00040325,2]
[394379263,1763511042860,-1000.0,0.00040342,7]
[394379265,1763511042869,-962.75616735,0.00040362,2]
[394379266,1763511042879,-217.19,0.00040405,2]
[394379268,1763511042888,-1107.0,0.0004045,7]
[394379269,1763511042898,-119.31700144,0.00040466,30]
[394379271,1763511042907,-1106.0,0.00040479,2]
[394379273,1763511042916,-150.0,0.0004048,7]
[394379274,1763511042925,-500.0,0.00040491,30]
[394379275,1763511042934,-1000.0,0.000405,60]
[394379276,1763511042944,-3409.34,0.000405,14]
[394379277,1763511042956,-1106.0,0.00040501,120]
[394379280,1763511042966,-2392.00722041,0.00040539,2]
[394379282,1763511042976,-500.0,0.00040565,30]
[394379284,1763511042985,-1000.0,0.00040577,7]
[394379287,1763511042994,-1076.0,0.000406,7]
[394379290,1763511043003,-384.91700143,0.0004063,30]
[394379293,1763511043013,-1107.0,0.00040653,2]
[394379295,1763511043022,-500.0,0.00040666,30]
[394379297,1763511043031,-500.0,0.00040673,30]
[394379299,1763511043041,-1457.92381117,0.00040707,15]
[394379300,1763511043050,-4313.64587493,0.00040708,15]
[394379301,1763511043059,-500.0,0.00040731,30]
[394379302,1763511043069,-1000.0,0.0004075,60]
[394379303,1763511043081,-279.0,0.00040753,120]
[394379304,1763511043090,-150.0,0.00040757,7]
[394379305,1763511043100,-1106.0,0.00040778,7]
[394379306,1763511043109,-500.0,0.0004079,30]
[394379307,1763511043120,-384.91700143,0.00040795,30]
[394379308,1763511043130,-283.92391288,0.00040796,13]
[394379309,1763511043139,-283.92391277,0.00040796,13]
[394379310,1763511043149,-283.92391277,0.00040796,13]
[394379311,1763511043158,-283.92391277,0.00040796,13]
[394379312,1763511043168,-283.92391277,0.00040796,13]
[394379313,1763511043178,-283.92391277,0.00040796,13]
[394379314,1763511043188,-700.6,0.00040822,2]
[394379315,1763511043198,-478.46,0.00040822,2]
[394379316,1763511043207,-555.89587036,0.00040835,36]
[394379317,1763511043217,-151.83340457,0.00040853,7]
[394379318,1763511043227,-500.0,0.0004087,30]
[394379319,1763511043236,-824.18199952,0.00040883,30]
[394379320,1763511043245,-384.91700143,0.00040932,30]
[394379321,1763511043254,-177.39,0.00040959,2]
[394379322,1763511043264,-1209.53,0.00040959,2]
[394379323,1763511043274,-169.49,0.00040959,2]
[394379324,1763511043283,-271.96,0.00040959,2]
[394379325,1763511043292,-301.7,0.00040959,2]
[394379326,1763511043304,-150.0,0.00040959,2]
[394379327,1763511043315,-416.87,0.00040959,2]
[394379328,1763511043324,-1000.0,0.00040998,7]
[394379329,1763511043334,-1100.0,0.00041,2]
[394379330,1763511043343,-18000.0,0.00041,3]
[394379331,1763511043353,-200.0,0.00041,120]
[394379332,1763511043363,-500.0,0.00041022,30]
[394379333,1763511043372,-150.0,0.00041035,7]
[394379334,1763511043382,-1106.0,0.00041047,2]
[394379335,1763511043391,-2924.76304,0.00041051,2]
[394379336,1763511043400,-500.0,0.00041059,30]
[394379337,1763511043409,-500.0,0.00041095,2]
[394379338,1763511043418,-1000.0,0.00041095,2]
[394379339,1763511043428,-2637.89,0.00041095,2]
[394379340,1763511043437,-500.0,0.00041095,2]
[394379341,1763511043446,-500.0,0.00041095,2]
[394379342,1763511043455,-300.0,0.00041095,2]
[394379343,1763511043464,-300.0,0.00041095,2]
[394379344,1763511043473,-500.0,0.00041095,2]
[394379345,1763511043482,-500.0,0.00041095,2]
[394379346,1763511043492,-384.91700143,0.00041096,30]
[394379347,1763511043501,-154.65,0.00041096,2]
[394379348,1763511043510,-200.0,0.00041096,20]
[394379349,1763511043520,-200.0,0.00041096,20]
[394379350,1763511043530,-200.0,0.00041096,20]
[394379351,1763511043540,-500.0,0.00041123,30]
[394379352,1763511043550,-150.0,0.00041139,14]
[394379353,1763511043559,-931.0,0.00041142,30]
[394379354,1763511043569,-1105.0,0.00041143,7]
[394379355,1763511043578,-25000.0,0.00041156,14]
[394379356,1763511043588,-25000.0,0.00041165,14]
[394379357,1763511043597,-150.0,0.00041218,14]
[394379358,1763511043606,-1000.0,0.00041257,30]
[394379359,1763511043616,-384.91700143,0.0004126,30]
[394379360,1763511043625,-312.97112097,0.000413,105]
[394379361,1763511043635,-1000.0,0.00041311,14]
[394379362,1763511043645,-150.0,0.00041312,30]
[394379363,1763511043654,-150.0,0.00041323,14]
[394379364,1763511043664,-500.0,0.00041357,30]
[394379366,1763511043673,-518.39619207,0.00041358,120]
[394379367,1763511043683,-500.0,0.00041358,120]
[394379368,1763511043692,-500.0,0.00041358,120]
[394379369,1763511043702,-500.0,0.00041358,120]
[394379370,1763511043712,-500.0,0.00041358,120]
[394379371,1763511043721,-500.0,0.00041358,120]
[394379372,1763511043730,-636.53,0.00041358,7]
[394379373,1763511043739,-643.54496797,0.00041358,120]
[394379374,1763511043748,-500.0,0.00041358,120]
[394379375,1763511043757,-530.64,0.00041358,2]
[394379376,1763511043766,-587.93405534,0.00041358,120]
[394379377,1763511043776,-500.0,0.00041369,2]
[394379378,1763511043785,-784.62015355,0.00041369,2]
[394379379,1763511043794,-2637.89,0.00041369,2]
[394379380,1763511043803,-500.0,0.00041369,2]
[394379381,1763511043813,-200.9225493,0.00041369,2]
[394379382,1763511043822,-300.0,0.00041369,2]
[394379383,1763511043832,-500.0,0.00041369,2]
[394379384,1763511043841,-500.0,0.00041369,2]
[394379385,1763511043850,-150.0,0.00041372,14]
[394379386,1763511043859,-592.73989998,0.00041396,2]
[394379387,1763511043869,-2000.0,0.000414,2]
[394379388,1763511043878,-384.91700143,0.00041425,30]
[394379389,1763511043888,-1000.0,0.00041446,14]
[394379390,1763511043897,-500.0,0.00041463,30]
[394379391,1763511043907,-500.0,0.00041485,120]
[394379392,1763511043916,-500.0,0.00041485,120]
[394379393,1763511043925,-500.0,0.00041485,120]
[394379394,1763511043935,-500.0,0.00041485,120]
[394379395,1763511043944,-500.0,0.00041485,120]
[394379396,1763511043957,-636.53,0.00041485,7]
[394379397,1763511043966,-276.20831964,0.00041485,120]
[394379398,1763511043975,-530.64,0.00041485,2]
[394379399,1763511043984,-500.0,0.00041495,120]
[394379400,1763511043995,-500.0,0.00041495,120]
[394379401,1763511044004,-500.0,0.00041495,120]
[394379402,1763511044013,-500.0,0.00041495,120]
[394379403,1763511044023,-268.33467474,0.00041495,120]
[394379404,1763511044033,-636.53,0.00041495,7]
[394379405,1763511044043,-530.64,0.00041495,2]
[394379406,1763511044052,-300.0,0.00041498,2]
[394379407,1763511044060,-1000.0,0.00041498,14]
[394379408,1763511044069,-609.0,0.00041499,2]
[394379409,1763511044078,-575.0,0.00041499,2]
[394379410,1763511044087,-1318.0,0.00041499,2]
[394379411,1763511044096,-150.0,0.000415,14]
[394379412,1763511044105,-278.0,0.00041501,7]
[394379413,1763511044114,-1000.0,0.00041507,14]
[394379414,1763511044123,-278.0,0.0004152,2]
[394379415,1763511044132,-300.0,0.00041534,2]
[394379416,1763511044142,-900.0,0.00041558,2]
[394379417,1763511044151,-151.90159578,0.00041562,30]
[394379418,1763511044160,-205.3362908,0.00041562,30]
[394379419,1763511044169,-500.0,0.00041562,30]
[394379420,1763511044178,-500.0,0.00041562,2]
[394379421,1763511044187,-1150.0,0.00041562,30]
[394379422,1763511044196,-500.0,0.00041562,30]
[394379423,1763511044205,-861.0,0.00041562,30]
[394379424,1763511044214,-931.0,0.00041566,30]
[394379425,1763511044223,-1000.0,0.00041577,14]
[394379426,1763511044232,-296.06480758,0.00041578,120]
[394379427,1763511044241,-1000.0,0.00041579,30]
[394379428,1763511044251,-1000.0,0.00041579,30]
[394379429,1763511044260,-474.603,0.00041579,30]
[394379430,1763511044269,-376377.7078,0.00041586,30]
[394379431,1763511044278,-150.0,0.00041589,30]
[394379432,1763511044292,-150.0,0.00041589,30]
[394379433,1763511044302,-500.0,0.00041589,30]
[394379434,1763511044311,-500.0,0.00041589,2]
[394379435,1763511044320,-1150.0,0.00041589,30]
[394379436,1763511044330,-500.0,0.00041589,30]
[394379437,1763511044339,-861.0,0.00041589,30]
[394379438,1763511044348,-149625.813053,0.00041596,2]
[394379439,1763511044452,-1640.6741766,0.00041596,2]
[394379440,1763511044464,-2346.54125902,0.00041596,2]
[394379441,1763511044582,-358.127,0.00040205,2]
[394379442,1763511044592,-273184.45536128,0.00041596,2]
[394379443,1763511044602,-1000.0,0.000416,14]
[394379444,1763511044611,-6586.56,0.000416,30]
[394379445,1763511044622,-500.0,0.00041617,30]
[394379446,1763511044632,-500.0,0.00041617,2]
[394379447,1763511044641,-1150.0,0.00041617,30]
[394379448,1763511044650,-500.0,0.00041617,30]
[394379449,1763511044659,-861.0,0.00041617,30]
[394379450,1763511044668,-300.0,0.00041627,2]
[394379451,1763511044678,-500.0,0.00041643,2]
[394379452,1763511044687,-2637.89,0.00041643,2]
[394379453,1763511044696,-500.0,0.00041643,2]
[394379454,1763511044705,-300.0,0.00041643,2]
[394379455,1763511044714,-500.0,0.00041643,2]
[394379456,1763511044723,-500.0,0.00041643,2]
[394379457,1763511044732,-500.0,0.00041644,30]
[394379458,1763511044742,-500.0,0.00041644,2]
[394379459,1763511044751,-1150.0,0.00041644,30]
[394379460,1763511044760,-500.0,0.00041644,30]
[394379461,1763511044770,-861.0,0.00041644,30]
[394379462,1763511044779,-500.0,0.00041645,30]
[394379463,1763511044792,-150.0,0.00041645,30]
[394379464,1763511044802,-214.6591868,0.00041645,30]
[394379465,1763511044811,-150.0,0.00041645,30]
[394379466,1763511044820,-500.0,0.00041645,30]
[394379467,1763511044829,-150.0,0.00041645,2]
[394379468,1763511044838,-150.0,0.00041645,30]
[394379469,1763511044847,-150.0,0.00041645,30]
[394379470,1763511044856,-150.0,0.00041645,30]
[394379471,1763511044865,-900.0,0.00041658,2]
[394379472,1763511044874,-500.0,0.00041672,30]
[394379473,1763511044883,-500.0,0.00041672,2]
[394379474,1763511044893,-1150.0,0.00041672,30]
[394379475,1763511044902,-500.0,0.00041672,30]
[394379476,1763511044911,-861.0,0.00041672,30]
[394379477,1763511044919,-500.0,0.00041672,30]
[394379478,1763511044929,-150.0,0.00041672,30]
[394379479,1763511044938,-500.0,0.00041672,30]
[394379480,1763511044947,-150.0,0.00041672,30]
[394379481,1763511044956,-150.0,0.00041672,30]
[394379482,1763511044965,-300.0,0.00041675,2]
[394379483,1763511044975,-167.73527823,0.00041683,16]
[394379484,1763511044983,-300.0,0.00041694,2]
[394379485,1763511044993,-300.0,0.00041695,2]
[394379486,1763511045002,-179.26,0.00041696,120]
[394379487,1763511045012,-962.75616735,0.00041696,4]
[394379488,1763511045021,-1134.12166478,0.00041696,2]
[394379489,1763511045032,-4313.64587493,0.00041696,15]
[394379490,1763511045041,-1457.92381117,0.00041696,15]
[394379491,1763511045052,-1191.22885217,0.00041696,2]
[394379492,1763511045061,-11944.08961347,0.00041696,2]
[394379493,1763511045071,-1105.0,0.00041696,2]
[394379494,1763511045081,-500.0,0.00041699,30]
[394379495,1763511045090,-500.0,0.00041699,2]
[394379496,1763511045100,-1150.0,0.00041699,30]
[394379497,1763511045109,-500.0,0.00041699,30]
[394379498,1763511045241,-861.0,0.00041699,30]
[394379499,1763511045251,-1006.9975,0.00041699,2]
[394379500,1763511045262,-187.2697412,0.000417,30]
[394379501,1763511045271,-200.0,0.000417,30]
[394379502,1763511045281,-500.0,0.000417,30]
[394379503,1763511045291,-200.0,0.000417,30]
[394379504,1763511045300,-150.0,0.000417,30]
[394379505,1763511045309,-196.78421099,0.000417,120]
[394379506,1763511045318,-182.57104162,0.000417,120]
[394379507,1763511045328,-197.61804693,0.000417,120]
[394379508,1763511045337,-216.0,0.000417,30]
[394379509,1763511045347,-193.4806984,0.000417,120]
[394379510,1763511045356,-160.17,0.000417,60]
[394379511,1763511045366,-423.23507377,0.000417,30]
[394379512,1763511045375,-185.28,0.000417,46]
[394379513,1763511045385,-300.0,0.00041715,2]
[394379514,1763511045395,-500.0,0.00041726,30]
[394379515,1763511045404,-500.0,0.00041726,2]
[394379516,1763511045414,-1150.0,0.00041726,30]
[394379517,1763511045423,-500.0,0.00041726,30]
[394379518,1763511045433,-861.0,0.00041726,30]
[394379519,1763511045442,-500.0,0.00041727,30]
[394379520,1763511045452,-150.0,0.00041727,30]
[394379521,1763511045461,-1000.0,0.00041749,14]
[394379522,1763511045471,-240.96132971,0.00041754,30]
[394379523,1763511045482,-500.0,0.00041754,2]
[394379524,1763511045492,-1150.0,0.00041754,30]
[394379525,1763511045502,-500.0,0.00041754,30]
[394379526,1763511045511,-861.0,0.00041754,30]
[394379527,1763511045521,-201.42723711,0.00041754,30]
[394379528,1763511045530,-150.0,0.00041754,30]
[394379529,1763511045542,-150.0,0.00041754,30]
[394379530,1763511045551,-150.0,0.00041754,30]
[394379531,1763511045560,-150.0,0.00041754,30]
[394379532,1763511045569,-150.0,0.00041754,30]
[394379533,1763511045578,-150.59614754,0.00041754,30]
[394379534,1763511045587,-150.0,0.00041754,30]
[394379535,1763511045596,-150.60787825,0.00041754,30]
[394379536,1763511045605,-150.0,0.00041754,30]
[394379537,1763511045614,-150.0,0.00041754,30]
[394379538,1763511045624,-150.0,0.00041754,30]
[394379539,1763511045633,-500.0,0.00041754,30]
[394379540,1763511045642,-500.0,0.00041754,120]
[394379541,1763511045651,-500.0,0.00041755,30]
[394379542,1763511045660,-220.22039718,0.00041755,30]
[394379543,1763511045670,-500.0,0.00041768,120]
[394379544,1763511045679,-2000.0,0.00041768,120]
[394379545,1763511045689,-200.0,0.00041768,120]
[394379546,1763511045697,-1000.0,0.00041774,90]
[394379547,1763511045706,-1000.0,0.00041774,90]
[394379548,1763511045715,-1000.0,0.00041774,90]
[394379549,1763511045725,-1000.0,0.00041774,90]
[394379550,1763511045734,-1000.0,0.00041774,90]
[394379551,1763511045743,-1000.0,0.00041774,90]
[394379552,1763511045752,-150.0,0.00041781,30]
[394379553,1763511045762,-177.39,0.00041781,30]
[394379554,1763511045771,-1209.53,0.00041781,30]
[394379555,1763511045780,-416.87,0.00041781,30]
[394379556,1763511045791,-478.46,0.00041781,30]
[394379557,1763511045800,-700.6,0.00041781,30]
[394379558,1763511045809,-169.49,0.00041781,30]
[394379559,1763511045819,-478.46,0.00041781,30]
[394379560,1763511045828,-177.39,0.00041781,30]
[394379561,1763511045837,-416.87,0.00041781,30]
[394379562,1763511045846,-150.0,0.00041781,30]
[394379563,1763511045855,-1209.53,0.00041781,30]
[394379565,1763511045864,-700.6,0.00041781,30]
[394379566,1763511045872,-169.49,0.00041781,30]
[394379567,1763511045881,-177.39,0.00041781,30]
[394379568,1763511045890,-169.49,0.00041781,30]
[394379569,1763511045898,-416.87,0.00041781,30]
[394379570,1763511045907,-150.0,0.00041781,30]
[394379571,1763511045916,-700.6,0.00041781,30]
[394379572,1763511045924,-478.46,0.00041781,30]
[394379573,1763511045933,-1209.53,0.00041781,30]
[394379574,1763511045942,-478.46,0.00041781,30]
[394379575,1763511045954,-700.6,0.00041781,30]
[394379576,1763511045963,-177.39,0.00041781,30]
[394379577,1763511045972,-150.0,0.00041781,30]
[394379578,1763511045982,-339.11,0.00041781,30]
[394379579,1763511045991,-2444.23,0.00041781,30]
[394379580,1763511046001,-700.6,0.00041781,30]
[394379581,1763511046010,-177.39,0.00041781,30]
[394379582,1763511046020,-150.0,0.00041781,30]
[394379583,1763511046031,-478.46,0.00041781,30]
[394379584,1763511046041,-478.46,0.00041781,30]
[394379585,1763511046050,-150.0,0.00041781,30]
[394379586,1763511046059,-700.6,0.00041781,30]
[394379587,1763511046069,-177.39,0.00041781,30]
[394379588,1763511046079,-700.6,0.00041781,30]
[394379589,1763511046088,-478.46,0.00041781,30]
[394379590,1763511046098,-150.0,0.00041781,30]
[394379591,1763511046109,-150.0,0.00041781,30]
[394379592,1763511046118,-700.6,0.00041781,30]
[394379593,1763511046127,-478.46,0.00041781,30]
[394379594,1763511046136,-275.21,0.00041781,30]
[394379595,1763511046145,-478.46,0.00041781,30]
[394379596,1763511046155,-700.6,0.00041781,30]
[394379597,1763511046164,-478.46,0.00041781,30]
[394379598,1763511046173,-700.6,0.00041781,30]
[394379599,1763511046182,-478.46,0.00041781,30]
[394379600,1763511046191,-700.6,0.00041781,30]
[394379601,1763511046200,-478.46,0.00041781,30]
[394379602,1763511046210,-700.6,0.00041781,30]
[394379603,1763511046219,-478.46,0.00041781,30]
[394379604,1763511046228,-350.66,0.00041781,30]
[394379605,1763511046237,-409.29,0.00041781,30]
[394379606,1763511046247,-952.31,0.00041781,30]
[394379607,1763511046256,-150.0,0.00041781,30]
[394379608,1763511046265,-1100.76,0.00041781,30]
[394379609,1763511046274,-550.38,0.00041781,30]
[394379610,1763511046284,-150.0,0.00041781,30]
[394379611,1763511046293,-177.39,0.00041781,30]
[394379612,1763511046302,-369.44,0.00041781,30]
[394379613,1763511046312,-177.39,0.00041781,30]
[394379614,1763511046321,-177.39,0.00041781,30]
[394379615,1763511046330,-177.39,0.00041781,30]
[394379616,1763511046339,-177.39,0.00041781,30]
[394379617,1763511046348,-177.12,0.00041781,30]
[394379618,1763511046357,-169.49,0.00041781,30]
[394379619,1763511046367,-177.39,0.00041781,30]
[394379620,1763511046376,-177.39,0.00041781,30]
[394379621,1763511046385,-177.39,0.00041781,30]
[394379622,1763511046394,-169.49,0.00041781,30]
[394379623,1763511046403,-500.0,0.00041781,2]
[394379624,1763511046413,-1150.0,0.00041781,30]
[394379625,1763511046422,-500.0,0.00041781,30]
[394379626,1763511046431,-861.0,0.00041781,30]
[394379627,1763511046440,-150.0,0.00041781,30]
[394379628,1763511046449,-150.0,0.00041781,30]
[394379629,1763511046459,-150.0,0.00041781,30]
[394379630,1763511046468,-150.0,0.00041781,30]
[394379631,1763511046477,-150.0,0.00041781,30]
[394379632,1763511046486,-150.0,0.00041781,30]
[394379633,1763511046496,-150.0,0.00041781,30]
[394379634,1763511046504,-500.0,0.00041781,30]
[394379635,1763511046514,-500.0,0.00041782,30]
[394379636,1763511046522,-150.0,0.00041782,30]
[394379637,1763511046531,-150.0,0.00041782,30]
[394379638,1763511046544,-150.0,0.00041782,30]
[394379639,1763511046553,-150.0,0.00041782,30]
[394379640,1763511046562,-150.21338972,0.00041782,30]
[394379641,1763511046571,-150.0,0.00041782,30]
[394379642,1763511046580,-151.12903698,0.00041782,30]
[394379643,1763511046588,-254.26253146,0.00041782,30]
[394379644,1763511046597,-150.0,0.00041782,30]
[394379645,1763511046607,-150.0,0.00041782,30]
[394379646,1763511046616,-150.0,0.00041782,30]
[394379647,1763511046625,-150.0,0.00041782,30]
[394379648,1763511046635,-150.57124475,0.00041782,30]
[394379649,1763511046644,-150.0,0.00041782,30]
[394379650,1763511046653,-150.0,0.00041782,30]
[394379651,1763511046663,-150.0,0.00041782,30]
[394379652,1763511046671,-1000.0,0.00041782,14]
[394379653,1763511046680,-500.0,0.00041782,30]
[394379654,1763511046690,-200.0,0.00041783,7]
[394379655,1763511046699,-151.0,0.00041783,60]
[394379656,1763511046707,-151.0,0.00041783,30]
[394379657,1763511046717,-151.0,0.00041783,30]
[394379658,1763511046726,-151.0,0.00041783,120]
[394379659,1763511046735,-159.588753,0.00041783,120]
[394379660,1763511046744,-151.0,0.00041783,120]
[394379661,1763511046753,-290.335612,0.00041783,120]
[394379662,1763511046762,-151.0,0.00041783,120]
[394379663,1763511046771,-151.0,0.00041783,120]
[394379664,1763511046780,-151.0,0.00041783,120]
[394379665,1763511046791,-180.0,0.00041783,30]
[394379666,1763511046800,-180.0,0.00041783,30]
[394379667,1763511046809,-180.0,0.00041783,30]
[394379668,1763511046818,-162.17814956,0.00041783,30]
[394379669,1763511046827,-151.0,0.00041783,120]
[394379670,1763511046836,-151.0,0.00041783,14]
[394379671,1763511046845,-1245.0,0.00041783,14]
[394379672,1763511046854,-151.0,0.00041783,14]
[394379673,1763511046863,-1245.0,0.00041783,14]
[394379674,1763511046871,-829.0,0.00041783,14]
[394379675,1763511046880,-151.0,0.00041783,14]
[394379676,1763511046889,-151.0,0.00041783,14]
[394379677,1763511046898,-1245.0,0.00041783,14]
[394379678,1763511046907,-829.0,0.00041783,14]
[394379679,1763511046916,-151.0,0.00041783,14]
[394379680,1763511046926,-1245.0,0.00041783,14]
[394379681,1763511046935,-302.0,0.00041783,14]
[394379682,1763511046943,-1245.0,0.00041783,14]
[394379683,1763511046953,-25943.08166523,0.00041783,30]
[394379684,1763511046962,-25943.08166523,0.00041783,30]
[394379685,1763511046972,-25943.08166523,0.00041783,30]
[394379686,1763511046981,-25943.08166523,0.00041783,30]
[394379687,1763511046991,-564.14482432,0.00041786,7]
[394379688,1763511047000,-564.14482432,0.00041786,7]
[394379689,1763511047010,-1019.5405,0.00041792,2]
[394379690,1763511047019,-540.9107369,0.00041792,3]
[394379691,1763511047029,-459.02,0.00041793,120]
[394379692,1763511047040,-151.0,0.00041793,7]
[394379693,1763511047049,-1245.0,0.00041793,7]
[394379694,1763511047058,-151.0,0.00041793,7]
[394379695,1763511047067,-1245.0,0.00041793,7]
[394379696,1763511047076,-901.6027639,0.00041793,7]
[394379697,1763511047085,-1245.0,0.00041793,7]